fUSD/lending_fUSD_20250504
["ID","MTS","AMOUNT","RATE_DAILY","PERIOD"]
[359789286,1746349830750,797.02,0.00019,2]
[359789287,1746349831047,797.02,0.00019,2]
[359789288,1746349831196,300.0,0.00018999,2]
[359789308,1746349832350,-200.0,0.00019653,2]
[359789309,1746349832360,-200.0,0.00019708,2]
[359789310,1746349832369,-317.081,0.00019729,2]
[359789311,1746349832378,-5647.23349639,0.00019752,2]
[359789312,1746349832390,-212.93560361,0.00019752,2]
[359789313,1746349832400,-1200.0,0.00019764,2]
[359789314,1746349832409,-500.0,0.00019764,2]
[359789315,1746349832419,-294.85754494,0.00019765,2]
[359789316,1746349832429,-294.85754494,0.00019771,2]
[359789317,1746349832438,-294.85754494,0.00019776,2]
[359789318,1746349832447,-142.45807597,0.00019781,2]
[359789319,1746349832458,-157.54192403,0.00019781,2]
[359789320,1746349832467,-1344.92659803,0.00019812,2]
[359789321,1746349832478,-563.70807734,0.00019812,2]
[359789322,1746349832583,-417.1601092,0.00019812,2]
[359789323,1746349832608,-10174.20521543,0.00019812,2]
[359789324,1746349832618,-493.9334945,0.00019851,2]
[359789325,1746349832627,-206.61395306,0.00019851,2]
[359789326,1746349832636,-273.093868,0.00019876,2]
[359789327,1746349832646,-151.0,0.00019876,2]
[359789328,1746349832655,-586.7495041,0.00019881,2]
[359789329,1746349832665,-457.39781248,0.00019881,2]
[359789330,1746349832674,-180.05964539,0.00019881,2]
[359789331,1746349832683,-452.21142137,0.00019881,2]
[359789332,1746349832692,-453.38296335,0.00019881,2]
[359789333,1746349832701,-151.0,0.00019884,2]
[359789334,1746349832711,-200.0,0.00019887,2]
[359789335,1746349832720,-550.2325539,0.00019887,2]
[359789336,1746349832729,-450.0,0.00019887,2]
[359789337,1746349832739,-472.78177741,0.0001989,2]
[359789338,1746349832748,-450.0,0.0001989,2]
[359789339,1746349832757,-450.0,0.0001989,2]
[359789340,1746349832766,-450.0,0.0001989,2]
[359789341,1746349832776,-450.0,0.0001989,2]
[359789342,1746349832785,-151.0,0.0001989,2]
[359789343,1746349832795,-450.0,0.0001989,2]
[359789344,1746349832804,-450.0,0.0001989,2]
[359789345,1746349832814,-253.720956,0.00019893,2]
[359789346,1746349832823,-507.79729514,0.00019894,2]
[359789347,1746349832833,-453.4949755,0.00019894,2]
[359789348,1746349832842,-450.0,0.00019894,2]
[359789349,1746349832852,-450.0,0.00019894,2]
[359789350,1746349832861,-461.19957292,0.00019894,2]
[359789351,1746349832870,-458.86010342,0.00019894,2]
[359789352,1746349832879,-464.29089079,0.00019894,2]
[359789353,1746349832888,-450.35549755,0.00019894,2]
[359789354,1746349832897,-458.00936509,0.00019894,2]
[359789355,1746349832906,-459.21027693,0.00019894,2]
[359789356,1746349832915,-458.45645693,0.00019894,2]
[359789357,1746349832924,-449.87734687,0.00019894,2]
[359789358,1746349832934,-457.10137301,0.00019894,2]
[359789359,1746349832943,-450.0,0.00019894,2]
[359789360,1746349832952,-10449.91452732,0.000199,2]
[359789361,1746349832961,-1116.84957933,0.000199,2]
[359789362,1746349832971,-583.42762668,0.000199,2]
[359789363,1746349832980,-500.0,0.00019973,2]
[359789364,1746349832989,-185.86673014,0.00019973,2]
[359789365,1746349832998,-568.94610058,0.00019973,2]
[359789366,1746349833007,-164.12,0.00019976,2]
[359789367,1746349833016,-2336.43,0.00019976,2]
[359789368,1746349833026,-469.51425947,0.00019983,2]
[359789369,1746349833036,-470.45725614,0.00019983,2]
[359789370,1746349833047,-459.02664269,0.00019983,2]
[359789371,1746349833056,-450.0,0.00019983,2]
[359789372,1746349833066,-469.83324681,0.00019983,2]
[359789373,1746349833076,-450.0,0.00019983,2]
[359789374,1746349833086,-465.27786629,0.00019983,2]
[359789375,1746349833096,-450.0,0.00019983,2]
[359789376,1746349833105,-450.0,0.00019983,2]
[359789377,1746349833115,-479.23743829,0.00019983,2]
[359789378,1746349833124,-450.0,0.00019983,2]
[359789379,1746349833134,-585.8182012,0.00019983,2]
[359789380,1746349833143,-455.82434303,0.00019983,2]
[359789381,1746349833152,-467.73292595,0.00019983,2]
[359789382,1746349833162,-450.0,0.00019983,2]
[359789383,1746349833171,-463.03363071,0.00019983,2]
[359789384,1746349833180,-450.0,0.00019983,2]
[359789385,1746349833190,-450.0,0.00019983,2]
[359789386,1746349833199,-450.0,0.00019983,2]
[359789387,1746349833209,-450.0,0.00019983,2]
[359789388,1746349833218,-460.10995182,0.00019983,2]
[359789389,1746349833228,-178610.02968737,0.00019984,2]
[359789390,1746349833239,-64225.92635265,0.00019984,2]
[359789391,1746349833248,-2336.43,0.0001999,2]
[359789392,1746349833258,-3009.0,0.00019996,2]
[359789393,1746349833268,-4765.0,0.00019996,2]
[359789394,1746349833277,-492.0,0.00019996,2]
[359789395,1746349833287,-617.0,0.0002,2]
[359789396,1746349833296,-43638.15767374,0.0002,2]
[359789397,1746349837670,-225.0,0.00019782,2]
[359789398,1746349837679,-513.87,0.00019887,2]
[359789399,1746349837689,-450.0,0.00019887,2]
[359789400,1746349837699,-450.0,0.0001989,2]
[359789401,1746349837709,-450.0,0.0001989,2]
[359789402,1746349837719,-1402.42,0.0001989,2]
[359789403,1746349837728,-520.59174411,0.00019894,2]
[359789404,1746349837738,-486.72964331,0.00019894,2]
[359789405,1746349837747,-500.0,0.00019894,2]
[359789406,1746349837757,-450.0,0.00019983,2]
[359789407,1746349837766,-350.45785041,0.00019983,2]
[359789408,1746349837777,-99.54214959,0.00019983,2]
[359789409,1746349837786,-455.17283341,0.00019983,2]
[359789410,1746349837796,-319.4772369,0.00019998,2]
[359789411,1746349837812,-462.11474998,0.00019894,2]
[359789412,1746349837821,-125.97912556,0.00019998,2]
[359789493,1746349839658,-308.78,0.00019881,2]
[359789498,1746349839804,-203.13745863,0.00019881,2]
[359789500,1746349839813,-240.75546955,0.00019894,2]
[359789502,1746349839824,-272.87634554,0.00019894,2]
[359789504,1746349839833,-483.1139953,0.00019894,2]
[359789506,1746349839842,-450.0,0.00019983,2]
[359789508,1746349839851,-432.54363754,0.00019998,2]
[359789510,1746349839860,-553.0,0.0002,2]
[359789512,1746349839870,-2549.81696984,0.0002,2]
[359789524,1746349839977,-5031.68440684,0.0002,2]
[359789527,1746349839987,-282.77895959,0.0002,2]
[359789529,1746349839998,-593.87605533,0.0002,2]
[359789554,1746349840238,-450.0,0.00019887,2]
[359789556,1746349840247,-14368.09146767,0.0002,2]
[359789793,1746349842641,-450.0,0.00019881,2]
[359789794,1746349842651,-452.03794089,0.00019881,2]
[359789795,1746349842661,-151.0,0.0001989,2]
[359789797,1746349842670,-91.33205911,0.00019891,2]
[359790079,1746349845519,-450.0,0.00019887,2]
[359790081,1746349845529,-2798.28,0.0001989,2]
[359790083,1746349845538,-59.66794089,0.00019891,2]
[359790085,1746349845548,-455.75828797,0.00019894,2]
[359790087,1746349845557,-157.152068,0.00019894,2]
[359790089,1746349845567,-460.91207951,0.00019894,2]
[359790090,1746349845576,-456.27968874,0.00019894,2]
[359790092,1746349845586,-1004.14689732,0.00019894,2]
[359790094,1746349845597,-450.00000001,0.00019983,2]
[359790096,1746349845606,-411.005,0.00019998,2]
[359790098,1746349845616,-43296.79803756,0.0002,2]
[359790105,1746349845676,-4757.93072835,0.0002,2]
[359790117,1746349845783,-182460.72458056,0.0002,2]
[359790119,1746349845794,-62554.27180934,0.0002,2]
[359790120,1746349845805,-6487.33388835,0.0002,2]
[359790121,1746349845817,-486.14657231,0.0002,2]
[359790317,1746349856369,-1353.19244804,0.0002,2]
[359790318,1746349856719,-18198.43116465,0.0002,2]
[359790319,1746349874069,1000.0,0.00018981,2]
[359790322,1746349913430,-1052.66100438,0.000196,2]
[359790323,1746349913453,-11746.5084,0.00019752,2]
[359790324,1746349913476,-157.3102981,0.00019799,2]
[359790325,1746349913496,-223.165696,0.00019852,2]
[359790326,1746349913518,-223.165696,0.00019852,2]
[359790327,1746349913538,-639.37137657,0.00019853,2]
[359790328,1746349913560,-223.165696,0.00019864,2]
[359790329,1746349913581,-223.165696,0.00019864,2]
[359790330,1746349913612,-223.165696,0.00019865,2]
[359790331,1746349913637,-223.165696,0.00019865,2]
[359790332,1746349913659,-223.165696,0.00019874,2]
[359790333,1746349913682,-223.165696,0.00019874,2]
[359790334,1746349913707,-300.0,0.0001988,2]
[359790335,1746349913730,-450.0,0.00019881,2]
[359790336,1746349913753,-451.86934719,0.00019881,2]
[359790337,1746349913776,-450.0,0.00019881,2]
[359790338,1746349913798,-450.0,0.00019881,2]
[359790339,1746349913820,-464.77349999,0.00019881,2]
[359790340,1746349913842,-456.1926682,0.00019881,2]
[359790341,1746349913864,-467.45185861,0.00019881,2]
[359790342,1746349913886,-471.18,0.00019881,2]
[359790343,1746349913908,-567.87,0.00019881,2]
[359790344,1746349913930,-540.50678775,0.00019881,2]
[359790345,1746349913952,-695.01,0.00019881,2]
[359790346,1746349913974,-491.67032063,0.00019881,2]
[359790347,1746349913996,-450.0,0.00019881,2]
[359790348,1746349914021,-223.165696,0.00019882,2]
[359790349,1746349914044,-223.165696,0.00019882,2]
[359790350,1746349914066,-223.165696,0.00019884,2]
[359790351,1746349914088,-223.165696,0.00019884,2]
[359790352,1746349914111,-500.0,0.00019887,2]
[359790353,1746349914133,-450.0,0.00019887,2]
[359790354,1746349914155,-450.0,0.00019887,2]
[359790355,1746349914177,-450.0,0.00019887,2]
[359790356,1746349914199,-450.0,0.00019887,2]
[359790357,1746349914222,-450.0,0.00019887,2]
[359790358,1746349914245,-450.0,0.00019887,2]
[359790359,1746349914268,-450.0,0.00019887,2]
[359790360,1746349914291,-878.6,0.00019887,2]
[359790361,1746349914315,-426.761149,0.00019887,2]
[359790362,1746349914337,-450.0,0.00019887,2]
[359790363,1746349914359,-450.0,0.00019887,2]
[359790364,1746349914386,-450.0,0.00019887,2]
[359790365,1746349914408,-450.0,0.00019887,2]
[359790366,1746349914431,-450.0,0.00019887,2]
[359790367,1746349914454,-450.0,0.00019887,2]
[359790368,1746349914476,-450.0,0.00019887,2]
[359790369,1746349914498,-754.06,0.00019887,2]
[359790370,1746349914522,-450.0,0.00019887,2]
[359790371,1746349914546,-1369.72,0.00019887,2]
[359790372,1746349914568,-223.165696,0.00019888,2]
[359790373,1746349914590,-223.165696,0.00019888,2]
[359790374,1746349914612,-450.0,0.0001989,2]
[359790375,1746349914635,-450.0,0.0001989,2]
[359790376,1746349914657,-6518.91,0.0001989,2]
[359790377,1746349914679,-450.0,0.0001989,2]
[359790378,1746349914701,-223.165696,0.0001989,2]
[359790379,1746349914724,-151.0,0.0001989,2]
[359790380,1746349914746,-223.165696,0.0001989,2]
[359790381,1746349914768,-784.41,0.0001989,2]
[359790382,1746349914790,-273.53446169,0.0001989,2]
[359790383,1746349914813,-450.0,0.0001989,2]
[359790384,1746349914836,-2747.75,0.0001989,2]
[359790385,1746349914860,-151.0,0.0001989,2]
[359790386,1746349914882,-13677.28,0.0001989,2]
[359790387,1746349914904,-1133.9,0.0001989,2]
[359790388,1746349914927,-450.0,0.0001989,2]
[359790389,1746349914950,-871.88,0.0001989,2]
[359790390,1746349914974,-450.0,0.0001989,2]
[359790391,1746349914997,-7121.94,0.0001989,2]
[359790392,1746349915020,-551.62,0.0001989,2]
[359790393,1746349915043,-537.72900707,0.0001989,2]
[359790394,1746349915065,-450.0,0.0001989,2]
[359790395,1746349915086,-151.0,0.00019891,2]
[359790396,1746349915109,-151.0,0.00019891,2]
[359790397,1746349915133,-500.0,0.00019892,2]
[359790398,1746349915156,-500.0,0.00019892,2]
[359790399,1746349915179,-508.97,0.00019892,2]
[359790400,1746349915202,-223.165696,0.00019893,2]
[359790401,1746349915225,-223.165696,0.00019893,2]
[359790402,1746349915252,-455.55517642,0.00019894,2]
[359790403,1746349915576,-463.52548413,0.00019894,2]
[359790404,1746349915600,-527.02644517,0.00019894,2]
[359790405,1746349915621,-459.64622207,0.00019894,2]
[359790406,1746349915643,-513.91255045,0.00019894,2]
[359790407,1746349915664,-544.27870608,0.00019894,2]
[359790408,1746349915685,-151.0,0.00019894,2]
[359790409,1746349915705,-527.52328005,0.00019894,2]
[359790410,1746349915731,-518.29408236,0.00019894,2]
[359790411,1746349915753,-778.06,0.00019894,2]
[359790412,1746349915775,-450.0,0.00019894,2]
[359790413,1746349915797,-475.51806962,0.00019894,2]
[359790414,1746349915818,-461.24621695,0.00019894,2]
[359790415,1746349915839,-451.41441522,0.00019894,2]
[359790416,1746349915859,-459.00018336,0.00019894,2]
[359790417,1746349915881,-151.0,0.00019894,2]
[359790418,1746349915902,-457.2414403,0.00019894,2]
[359790419,1746349915923,-462.17263254,0.00019894,2]
[359790420,1746349915945,-457.86405287,0.00019894,2]
[359790421,1746349915967,-450.0,0.00019894,2]
[359790422,1746349915988,-452.60256211,0.00019894,2]
[359790423,1746349916009,-453.06027563,0.00019894,2]
[359790424,1746349916031,-554.35272544,0.00019894,2]
[359790425,1746349916052,-450.0,0.00019894,2]
[359790426,1746349916074,-450.0,0.00019894,2]
[359790427,1746349916095,-461.65097909,0.00019894,2]
[359790428,1746349916117,-464.56,0.00019894,2]
[359790429,1746349916139,-465.44792781,0.00019894,2]
[359790430,1746349916159,-515.94296531,0.00019894,2]
[359790431,1746349916180,-474.71038616,0.00019894,2]
[359790432,1746349916201,-523.74689952,0.00019894,2]
[359790433,1746349916222,-456.4673388,0.00019894,2]
[359790434,1746349916243,-453.76695572,0.00019894,2]
[359790435,1746349916265,-477.18861953,0.00019894,2]
[359790436,1746349916288,-453.94957557,0.00019894,2]
[359790437,1746349916310,-461.61914464,0.00019894,2]
[359790438,1746349916346,-515.82031115,0.00019894,2]
[359790439,1746349916369,-450.0,0.00019894,2]
[359790440,1746349916395,-223.165696,0.00019896,2]
[359790441,1746349916419,-223.1657,0.00019896,2]
[359790442,1746349916443,-1705.17411462,0.000199,2]
[359790443,1746349916467,-151.0,0.000199,2]
[359790444,1746349916490,-151.0,0.000199,2]
[359790445,1746349916512,-151.0,0.000199,2]
[359790446,1746349916534,-151.0,0.000199,2]
[359790447,1746349916557,-10514.42830209,0.000199,2]
[359790448,1746349916578,-199.16326471,0.000199,3]
[359790449,1746349916600,-157.779438,0.00019954,2]
[359790450,1746349916621,-151.0,0.00019954,2]
[359790451,1746349916642,-500.87047862,0.00019973,2]
[359790452,1746349916664,-166.47206938,0.00019973,2]
[359790453,1746349916686,-500.0,0.00019973,2]
[359790454,1746349916707,-500.0,0.00019973,2]
[359790455,1746349916730,-500.0,0.00019983,2]
[359790456,1746349916759,-694.27099026,0.00019983,2]
[359790457,1746349916788,-694.27099026,0.00019983,2]
[359790458,1746349916810,-291.348057,0.00019983,2]
[359790459,1746349916843,-694.27099026,0.00019983,2]
[359790460,1746349916872,-694.27099026,0.00019983,2]
[359790461,1746349916901,-694.27099026,0.00019983,2]
[359790462,1746349916930,-694.27099026,0.00019983,2]
[359790463,1746349916960,-694.27099026,0.00019983,2]
[359790464,1746349916989,-694.27099026,0.00019983,2]
[359790465,1746349917019,-694.27099026,0.00019983,2]
[359790466,1746349917048,-694.27099026,0.00019983,2]
[359790467,1746349917077,-694.27099026,0.00019983,2]
[359790468,1746349917105,-694.27099026,0.00019983,2]
[359790469,1746349917133,-694.27099026,0.00019983,2]
[359790470,1746349917161,-694.27099026,0.00019983,2]
[359790471,1746349917190,-694.27099026,0.00019983,2]
[359790472,1746349917222,-694.27099026,0.00019983,2]
[359790473,1746349917250,-694.27099026,0.00019983,2]
[359790474,1746349917279,-694.27099026,0.00019983,2]
[359790475,1746349917306,-694.27099026,0.00019983,2]
[359790476,1746349917334,-694.27099026,0.00019983,2]
[359790477,1746349917361,-694.27099026,0.00019983,2]
[359790478,1746349917391,-694.27099026,0.00019983,2]
[359790479,1746349917420,-694.27099026,0.00019983,2]
[359790480,1746349917449,-694.27099026,0.00019983,2]
[359790481,1746349917477,-694.27099026,0.00019983,2]
[359790482,1746349917506,-694.27099026,0.00019983,2]
[359790483,1746349917534,-694.27099026,0.00019983,2]
[359790484,1746349917561,-694.27099026,0.00019983,2]
[359790485,1746349917589,-694.27099026,0.00019983,2]
[359790486,1746349917621,-694.27099026,0.00019983,2]
[359790487,1746349917648,-694.27099026,0.00019983,2]
[359790488,1746349917676,-694.27099026,0.00019983,2]
[359790489,1746349917703,-694.27099026,0.00019983,2]
[359790490,1746349917732,-694.27099026,0.00019983,2]
[359790491,1746349917759,-694.27099026,0.00019983,2]
[359790492,1746349917787,-694.27099026,0.00019983,2]
[359790493,1746349917814,-694.27099026,0.00019983,2]
[359790494,1746349917842,-694.27099026,0.00019983,2]
[359790495,1746349917869,-694.27099026,0.00019983,2]
[359790496,1746349917897,-694.27099026,0.00019983,2]
[359790497,1746349918019,-694.27099026,0.00019983,2]
[359790498,1746349918049,-694.27099026,0.00019983,2]
[359790499,1746349918071,-450.0,0.00019983,2]
[359790500,1746349918091,-462.70920917,0.00019983,2]
[359790501,1746349918112,-450.0,0.00019983,2]
[359790502,1746349918134,-450.0,0.00019983,2]
[359790503,1746349918155,-469.12978993,0.00019983,2]
[359790504,1746349918177,-450.0,0.00019983,2]
[359790505,1746349918198,-481.57526706,0.00019983,2]
[359790506,1746349918219,-450.0,0.00019983,2]
[359790507,1746349918249,-720.38,0.00019983,2]
[359790508,1746349918274,-480.03504589,0.00019983,2]
[359790509,1746349918296,-450.0,0.00019983,2]
[359790510,1746349918317,-479.44358423,0.00019983,2]
[359790511,1746349918338,-450.0,0.00019983,2]
[359790512,1746349918358,-450.0,0.00019983,2]
[359790513,1746349918381,-465.80186864,0.00019983,2]
[359790514,1746349918402,-474.4431861,0.00019983,2]
[359790515,1746349918424,-525.03139074,0.00019983,2]
[359790516,1746349918445,-450.0,0.00019983,2]
[359790517,1746349918467,-479.37705776,0.00019983,2]
[359790518,1746349918489,-151.0,0.00019983,2]
[359790519,1746349918512,-151.0,0.00019983,2]
[359790520,1746349918534,-521.14833361,0.00019983,2]
[359790521,1746349918555,-241.807605,0.00019983,2]
[359790522,1746349918577,-898.03,0.00019983,2]
[359790523,1746349918598,-462.30387753,0.00019983,2]
[359790524,1746349918618,-457.69500517,0.00019983,2]
[359790525,1746349918640,-488.13872303,0.00019983,2]
[359790526,1746349918661,-489.51540314,0.00019983,2]
[359790527,1746349918684,-450.0,0.00019983,2]
[359790528,1746349918705,-450.0,0.00019983,2]
[359790529,1746349918726,-524.73403359,0.00019983,2]
[359790530,1746349918747,-450.0,0.00019983,2]
[359790531,1746349918769,-514.46,0.00019983,2]
[359790532,1746349918791,-450.0,0.00019983,2]
[359790533,1746349918812,-458.05763647,0.00019983,2]
[359790534,1746349918833,-450.0,0.00019983,2]
[359790535,1746349918854,-450.0,0.00019983,2]
[359790536,1746349918875,-450.0,0.00019983,2]
[359790537,1746349918896,-453.63209333,0.00019983,2]
[359790538,1746349918918,-457.7062407,0.00019983,2]
[359790539,1746349918942,-450.0,0.00019983,2]
[359790540,1746349918964,-467.77034702,0.00019983,2]
[359790541,1746349918986,-492.94121386,0.00019983,2]
[359790542,1746349919007,-459.60864178,0.00019983,2]
[359790543,1746349919029,-450.0,0.00019983,2]
[359790544,1746349919050,-450.417265,0.00019985,2]
[359790545,1746349919071,-453.97472434,0.00019985,2]
[359790546,1746349919092,-472.34156469,0.00019985,2]
[359790547,1746349919113,-514.97502014,0.00019985,2]
[359790548,1746349919134,-455.31894369,0.00019985,2]
[359790549,1746349919154,-451.868735,0.00019985,2]
[359790550,1746349919175,-456.88986154,0.00019985,2]
[359790551,1746349919195,-450.0,0.00019985,2]
[359790552,1746349919216,-450.75411102,0.00019985,2]
[359790553,1746349919237,-450.0,0.00019985,2]
[359790554,1746349919257,-49853.2680258,0.00019986,2]
[359790555,1746349919278,-5681.3543588,0.00019986,2]
[359790556,1746349919299,-1140.0,0.00019998,2]
[359790557,1746349919320,-504.0,0.0002,2]
[359790558,1746349919341,-214.13777009,0.0002,2]
[359790559,1746349919363,-901440.22351067,0.0002,2]
[359790560,1746349919386,-64004.3249662,0.0002,2]
[359790561,1746349919407,-652113.13854668,0.0002,2]
[359790562,1746349963962,-1079.40024977,0.000196,2]
[359790563,1746349963986,-157.3102982,0.00019799,2]
[359790564,1746349964010,-1603.990702,0.00019852,2]
[359790565,1746349964032,-1603.990702,0.00019852,2]
[359790566,1746349964055,-1603.990702,0.00019864,2]
[359790567,1746349964078,-1603.990702,0.00019864,2]
[359790568,1746349964101,-1603.990702,0.00019865,2]
[359790569,1746349964127,-1603.990702,0.00019865,2]
[359790570,1746349964151,-1603.990702,0.00019874,2]
[359790571,1746349964174,-1603.990702,0.00019874,2]
[359790572,1746349964198,-207.4,0.00019875,2]
[359790573,1746349964221,-151.0,0.00019876,2]
[359790574,1746349964243,-151.0,0.00019876,2]
[359790575,1746349964266,-151.0,0.00019878,2]
[359790576,1746349964288,-194.68130024,0.00019878,2]
[359790577,1746349964310,-668.65185757,0.00019878,2]
[359790578,1746349964332,-250.0,0.00019879,2]
[359790579,1746349964355,-523.05498118,0.00019881,2]
[359790580,1746349964376,-450.0,0.00019881,2]
[359790581,1746349964402,-482.85465418,0.00019881,2]
[359790582,1746349964424,-495.75,0.00019881,2]
[359790583,1746349964447,-480.87568506,0.00019881,2]
[359790584,1746349964470,-450.0,0.00019881,2]
[359790585,1746349964493,-450.0,0.00019881,2]
[359790586,1746349964517,-450.0,0.00019881,2]
[359790587,1746349964540,-506.05877206,0.00019881,2]
[359790588,1746349964563,-512.15869507,0.00019881,2]
[359790589,1746349964587,-518.38152984,0.00019881,2]
[359790590,1746349964612,-450.0,0.00019881,2]
[359790591,1746349964635,-593.75353242,0.00019881,2]
[359790592,1746349964657,-437.56713795,0.00019881,2]
[359790593,1746349964681,-1603.990702,0.00019882,2]
[359790594,1746349964704,-1603.990702,0.00019882,2]
[359790595,1746349964729,-151.0,0.00019884,2]
[359790596,1746349964753,-165.318269,0.00019884,2]
[359790597,1746349964776,-1603.990702,0.00019884,2]
[359790598,1746349964799,-1603.990702,0.00019884,2]
[359790599,1746349964825,-450.0,0.00019887,2]
[359790600,1746349964849,-450.0,0.00019887,2]
[359790601,1746349964873,-502.73946429,0.00019887,2]
[359790602,1746349964896,-450.0,0.00019887,2]
[359790603,1746349964920,-450.0,0.00019887,2]
[359790604,1746349964944,-450.0,0.00019887,2]
[359790605,1746349964967,-450.0,0.00019887,2]
[359790606,1746349964990,-450.0,0.00019887,2]
[359790607,1746349965015,-73574.41,0.00019887,2]
[359790608,1746349965037,-450.0,0.00019887,2]
[359790609,1746349965061,-450.0,0.00019887,2]
[359790610,1746349965085,-450.0,0.00019887,2]
[359790611,1746349965108,-1603.990702,0.00019888,2]
[359790612,1746349965131,-1603.990702,0.00019888,2]
[359790613,1746349965167,-450.0,0.0001989,2]
[359790614,1746349965192,-151.0,0.0001989,2]
[359790615,1746349965216,-1603.990702,0.0001989,2]
[359790616,1746349965240,-818.351003,0.0001989,2]
[359790617,1746349965265,-151.0,0.0001989,2]
[359790618,1746349965289,-1603.990702,0.0001989,2]
[359790619,1746349965313,-818.351003,0.0001989,2]
[359790620,1746349965337,-151.0,0.0001989,2]
[359790621,1746349965360,-818.351003,0.00019891,2]
[359790622,1746349965384,-151.0,0.00019891,2]
[359790623,1746349965409,-818.351003,0.00019891,2]
[359790624,1746349965433,-163.944186,0.00019891,2]
[359790625,1746349965456,-151.0,0.00019893,2]
[359790626,1746349965480,-1603.990702,0.00019893,2]
[359790627,1746349965505,-1603.990702,0.00019893,2]
[359790628,1746349965531,-452.85885943,0.00019894,2]
[359790629,1746349965556,-489.43354141,0.00019894,2]
[359790630,1746349965581,-450.0,0.00019894,2]
[359790631,1746349965605,-456.40160648,0.00019894,2]
[359790632,1746349965628,-551.44868734,0.00019894,2]
[359790633,1746349965653,-737.19,0.00019894,2]
[359790634,1746349965677,-450.0,0.00019894,2]
[359790635,1746349965702,-454.74558979,0.00019894,2]
[359790636,1746349965725,-461.64032224,0.00019894,2]
[359790637,1746349965749,-818.351003,0.00019894,2]
[359790638,1746349965772,-151.0,0.00019894,2]
[359790639,1746349965794,-450.0,0.00019894,2]
[359790640,1746349965818,-469.60120609,0.00019894,2]
[359790641,1746349965845,-818.351003,0.00019894,2]
[359790642,1746349965868,-450.0,0.00019894,2]
[359790643,1746349965892,-469.60296193,0.00019894,2]
[359790644,1746349965916,-466.51685682,0.00019894,2]
[359790645,1746349965941,-472.09558978,0.00019894,2]
[359790646,1746349966259,-464.57555561,0.00019894,2]
[359790647,1746349966280,-478.00066633,0.00019894,2]
[359790648,1746349966303,-519.73631858,0.00019894,2]
[359790649,1746349966324,-461.48757921,0.00019894,2]
[359790650,1746349966346,-1603.990702,0.00019896,2]
[359790651,1746349966370,-1603.990702,0.00019896,2]
[359790652,1746349966396,-151.0,0.00019898,2]
[359790653,1746349966419,-343.26150107,0.000199,2]
[359790654,1746349966446,-151.0,0.000199,2]
[359790655,1746349966471,-6966.60968488,0.000199,2]
[359790656,1746349966499,-818.351003,0.000199,2]
[359790657,1746349966523,-818.351003,0.000199,2]
[359790658,1746349966546,-744.56638622,0.000199,2]
[359790659,1746349966570,-151.0,0.000199,2]
[359790660,1746349966593,-151.0,0.000199,2]
[359790661,1746349966616,-818.351003,0.000199,2]
[359790662,1746349966651,-818.351003,0.000199,2]
[359790663,1746349966678,-388.95175112,0.000199,2]
[359790664,1746349966705,-74231.31712538,0.000199,2]
[359790665,1746349966728,-151.0,0.00019944,2]
[359790666,1746349966753,-818.351003,0.00019954,2]
[359790667,1746349966781,-151.0,0.00019954,2]
[359790668,1746349966806,-818.351003,0.00019954,2]
[359790669,1746349966831,-500.0,0.00019973,2]
[359790670,1746349966854,-460.18741211,0.00019983,2]
[359790671,1746349966878,-478.05290311,0.00019983,2]
[359790672,1746349966903,-471.03077245,0.00019983,2]
[359790673,1746349966927,-450.0,0.00019983,2]
[359790674,1746349966951,-523.581673,0.00019983,2]
[359790675,1746349966977,-462.2875545,0.00019983,2]
[359790676,1746349967003,-468.95734355,0.00019983,2]